bitfinex-derivatives/quotes_SOLF0:USTF0_20250819
["timestamp","ask_amount","ask_price","bid_price","bid_amount"]
[1755579010185,124.15526151,179.3,179.23,2.97]
[1755579010382,3.98272175,179.29,179.23,2.97]
[1755579010588,3.04,179.27,179.2,2.97]
[1755579010784,3.98272175,179.26,179.2,2.97]
[1755579012383,3.04,179.25,179.19,4.98070621]
[1755579012688,3.04,179.29,179.2,2.97]
[1755579012879,3.98371803,179.28,179.2,2.97]
[1755579013082,3.04,179.29,179.21,2.97]
[1755579013283,3.98338153,179.28,179.21,2.97]
[1755579013482,3.98338153,179.27,179.21,2.97]
[1755579013677,3.04,179.29,179.21,2.97]
[1755579013884,3.98344435,179.28,179.21,2.97]
[1755579014085,3.98344435,179.27,179.21,2.97]
[1755579014282,3.04,179.29,179.21,2.97]
[1755579014587,3.98334726,179.28,179.21,2.97]
[1755579014788,3.98334726,179.27,179.21,2.97]
[1755579014987,3.04,179.29,179.21,2.97]
[1755579015183,3.98375598,179.28,179.21,2.97]
[1755579015492,3.98375598,179.27,179.21,2.97]
[1755579015688,3.04,179.29,179.21,2.97]
[1755579015989,3.98352298,179.28,179.21,2.97]
[1755579016183,3.98352298,179.27,179.21,2.97]
[1755579016384,3.04,179.29,179.21,2.97]
[1755579016584,3.98313354,179.28,179.21,2.97]
[1755579016883,3.98313354,179.27,179.21,2.97]
[1755579017085,3.04,179.29,179.21,2.97]
[1755579017282,3.98274068,179.28,179.21,2.97]
[1755579017489,3.98274068,179.27,179.21,2.97]
[1755579017685,3.04,179.29,179.21,2.97]
[1755579017884,3.98274068,179.28,179.21,2.97]
[1755579018085,7.02274068,179.27,179.21,2.97]
[1755579018390,7.02270294,179.26,179.21,2.97]
[1755579018584,3.04,179.26,179.22,2.97]
[1755579018985,127.19526151,179.3,179.2,2.97]
[1755579019187,3.98239228,179.29,179.2,2.97]
[1755579019387,3.98239228,179.28,179.2,2.97]
[1755579019588,3.04,179.28,179.2,2.97]
[1755579020098,3.98190862,179.27,179.2,2.97]
[1755579020386,3.04,179.28,179.2,2.97]
[1755579020590,3.98157585,179.27,179.2,2.97]
[1755579020787,3.98176423,179.26,179.2,2.97]
[1755579020988,3.04,179.28,179.2,2.97]
[1755579021191,3.97953991,179.27,179.2,2.97]
[1755579021390,3.97953991,179.26,179.2,2.97]
[1755579021591,3.04,179.28,179.2,2.97]
[1755579021889,3.97953991,179.27,179.2,2.97]
[1755579022091,3.04,179.28,179.22,2.97]
[1755579022584,3.04,179.28,179.22,8.5471]
[1755579022786,3.1,179.31,179.23,2.94]
[1755579022983,3.1,179.31,179.25,4.98070621]
[1755579023192,3.1,179.34,179.26,2.94]
[1755579023494,3.97661183,179.33,179.26,2.94]
[1755579023685,3.97661183,179.32,179.26,2.94]
[1755579023992,3.97667372,179.31,179.26,2.94]
[1755579024185,3.1,179.33,179.26,2.94]
[1755579024490,3.97561776,179.32,179.26,2.94]
[1755579024687,7.07561776,179.31,179.26,2.94]
[1755579024884,3.1,179.31,179.26,2.94]
[1755579025287,3.1,179.3,179.26,2.94]
[1755579025784,3.1,179.29,179.26,2.94]
[1755579026692,138.54,179.35,179.26,2.94]
[1755579026894,3.1,179.32,179.26,2.94]
[1755579027089,3.97423697,179.31,179.24,5.5765]
[1755579027285,3.1,179.31,179.27,2.94]
[1755579027800,3.1,179.3,179.27,2.94]
[1755579028090,138.54,179.35,179.14,10.35241238]
[1755579028091,4.98070621,179.33,179.14,1.07758]
[1755579028290,3.1,179.31,179.19,2.94]
[1755579028495,3.97364324,179.3,179.19,2.94]
[1755579028893,3.97364324,179.3,179.2,5.5777]
[1755579029093,3.97364324,179.3,179.21,2.94]
[1755579029984,3.1,179.29,179.21,2.94]
[1755579031298,3.1,179.29,179.21,8.5174]
[1755579031601,3.1,179.29,179.22,2.94]
[1755579031895,3.1,179.29,179.22,8.5171]
[1755579032988,3.1,179.29,179.22,2.94]
[1755579033396,3.1,179.29,179.22,8.5172]
[1755579034797,3.1,179.29,179.22,2.94]
[1755579037500,3.97485762,179.28,179.22,2.94]
[1755579037700,3.1,179.29,179.22,8.5171]
[1755579037904,3.97485762,179.28,179.22,8.5171]
[1755579038193,3.1,179.29,179.22,2.94]
[1755579038800,3.1,179.29,179.22,8.5169]
[1755579039202,3.1,179.29,179.22,2.94]
[1755579039493,3.97605279,179.28,179.22,2.94]
[1755579039694,3.1,179.25,179.22,2.94]
[1755579040404,3.1,179.25,179.18,7.92070621]
[1755579040697,3.1,179.25,179.18,13.49910621]
[1755579040896,3.1,179.25,179.18,7.92070621]
[1755579041297,3.1,179.25,179.18,13.49900621]
[1755579044597,3.1,179.25,179.19,2.94]
[1755579048307,3.98447401,179.24,179.19,2.94]
[1755579048500,4.98070621,179.3,179.19,2.94]
[1755579048710,3.1,179.24,179.2,2.94]
[1755579048907,11.5165286,179.29,179.2,2.94]
[1755579048908,3.1,179.23,179.2,2.94]
[1755579049104,3.1,179.22,179.16,8.519]
[1755579049303,3.1,179.22,179.16,2.94]
[1755579051909,3.1,179.22,179.16,5.579]
[1755579052113,3.1,179.26,179.18,2.94]
[1755579052307,3.98612252,179.25,179.18,2.94]
[1755579052517,3.98612252,179.24,179.18,8.5182]
[1755579052712,3.1,179.26,179.18,8.5182]
[1755579053011,3.98581541,179.25,179.18,8.5182]
[1755579053209,3.98581541,179.24,179.18,8.5182]
[1755579053511,3.1,179.26,179.18,8.5182]
[1755579053712,3.98581856,179.25,179.18,8.5182]
[1755579053910,3.98581856,179.24,179.18,8.5182]
[1755579054113,3.1,179.26,179.18,2.94]
[1755579054415,3.98569462,179.25,179.18,2.94]
[1755579054604,3.98569462,179.24,179.18,2.94]
[1755579054812,3.1,179.26,179.18,2.94]
[1755579055002,3.1,179.26,179.18,8.5184]
[1755579055208,3.98569462,179.25,179.19,2.97]
[1755579055509,3.98569462,179.24,179.18,5.5784]
[1755579055709,3.1,179.26,179.22,2.97]
[1755579055917,3.98558161,179.25,179.22,2.97]
[1755579056116,3.98558161,179.24,179.22,2.97]
[1755579056316,5.89980195,179.3,179.22,2.97]
[1755579056618,2.92,179.25,179.22,2.97]
[1755579056811,6.90547037,179.24,179.19,2.97]
[1755579057115,2.92,179.24,179.2,2.97]
[1755579057518,2.92,179.24,179.21,2.97]
[1755579057720,5.89980195,179.31,179.19,2.97]
[1755579057926,14.45818851,179.3,179.21,2.97]
[1755579058124,3.98530024,179.29,179.21,2.97]
[1755579058425,3.98530024,179.28,179.21,2.97]
[1755579058722,3.98530024,179.27,179.24,2.97]
[1755579058921,2.92,179.3,179.24,2.97]
[1755579059120,3.98417136,179.29,179.25,2.97]
[1755579059317,2.92,179.3,179.23,10.55740621]
[1755579059625,3.98367985,179.29,179.27,2.97]
[1755579059825,2.92,179.33,179.27,2.97]
[1755579060128,6.90367985,179.32,179.28,2.97]
[1755579060332,2.92,179.3,179.23,2.97]
[1755579060622,3.98367985,179.29,179.22,2.97]
[1755579060821,2.92,179.34,179.22,2.97]
[1755579061024,2.92,179.34,179.21,4.98070621]
[1755579061025,8.58435852,179.33,179.24,2.97]
[1755579061320,6.90371333,179.32,179.24,2.97]
[1755579061518,3.98371333,179.31,179.24,2.97]
[1755579061718,3.98371333,179.3,179.24,2.97]
[1755579061922,3.98371333,179.29,179.25,2.97]
[1755579062227,2.92,179.32,179.25,2.97]
[1755579062422,3.98273702,179.31,179.25,2.97]
[1755579062620,3.98273702,179.3,179.23,8.5468]
[1755579062921,144.31980195,179.37,179.24,4.98070621]
[1755579063124,11.50182636,179.36,179.25,2.97]
[1755579063323,3.98242627,179.35,179.26,5.5757]
[1755579063521,6.90242627,179.34,179.27,2.97]
[1755579063732,3.98242627,179.33,179.27,2.97]
[1755579063930,2.92,179.31,179.27,2.97]
[1755579064130,2.92,179.31,179.25,10.55690621]
[1755579064529,2.92,179.31,179.27,2.97]
[1755579065628,2.92,179.3,179.27,2.97]
[1755579067318,2.92,179.36,179.27,2.97]
[1755579067523,4.98070621,179.37,179.27,2.97]
[1755579067524,2.92,179.34,179.27,2.97]
[1755579067828,3.97855066,179.33,179.27,2.97]
[1755579068027,3.97855066,179.32,179.27,2.97]
[1755579068227,4.98070621,179.37,179.27,2.97]
[1755579068228,2.92,179.3,179.27,2.97]
[1755579069137,2.92,179.36,179.24,4.98070621]
[1755579069326,4.98070621,179.37,179.23,2.97]
[1755579069327,10.88050816,179.34,179.23,2.97]
[1755579069524,11.49277117,179.33,179.23,2.97]
[1755579069725,3.97844213,179.32,179.23,2.97]
[1755579069924,2.92,179.33,179.25,2.97]
[1755579070131,3.97831661,179.32,179.25,2.97]
[1755579070331,2.92,179.33,179.25,2.97]
[1755579070533,3.9780429,179.32,179.25,8.5462]
[1755579070729,2.92,179.33,179.25,8.5462]
[1755579071034,3.9780429,179.32,179.25,8.5462]
[1755579071329,2.92,179.33,179.25,8.5462]
[1755579071531,3.9777104,179.32,179.25,8.5462]
[1755579071733,2.92,179.33,179.25,8.5462]
[1755579071932,3.97752555,179.32,179.25,2.97]
[1755579072133,2.92,179.33,179.25,2.97]
[1755579072433,3.97718472,179.32,179.25,2.97]
[1755579072731,2.92,179.36,179.25,2.97]
[1755579072928,3.9772144,179.35,179.25,2.97]
[1755579073237,6.8972144,179.34,179.26,2.97]
[1755579073430,3.9772144,179.33,179.26,2.97]
[1755579073626,2.92,179.34,179.26,2.97]
[1755579073832,3.97661291,179.33,179.28,2.97]
[1755579074135,2.92,179.37,179.29,2.97]
[1755579074337,2.92,179.35,179.29,2.97]
[1755579074537,3.97489527,179.34,179.28,2.97]
[1755579074732,2.92,179.37,179.28,2.97]
[1755579074929,3.97495879,179.36,179.28,8.5453]
[1755579075238,3.97495879,179.35,179.28,8.5453]
[1755579075438,2.92,179.37,179.28,2.97]
[1755579075738,3.97401573,179.36,179.28,2.97]
[1755579075936,3.97401573,179.35,179.28,2.97]
[1755579076238,2.92,179.37,179.28,2.97]
[1755579076433,3.97296143,179.36,179.28,2.97]
[1755579076737,2.92,179.37,179.29,5.5749]
[1755579077036,3.97280945,179.36,179.28,2.97]
[1755579077225,2.92,179.37,179.28,8.5451]
[1755579077430,2.92,179.37,179.28,5.5751]
[1755579077731,2.92,179.37,179.29,8.5449]
[1755579077931,2.92,179.37,179.3,2.97]
[1755579079129,2.92,179.37,179.31,2.97]
[1755579079836,2.92,179.43,179.33,2.97]
[1755579080032,5.89980195,179.45,179.33,7.95070621]
[1755579080033,2.92,179.41,179.33,7.95070621]
[1755579081439,2.92,179.41,179.33,13.52440621]
[1755579081738,2.92,179.41,179.33,7.95070621]
[1755579082142,2.92,179.41,179.34,2.97]
[1755579082533,3.04,179.45,179.34,2.97]
[1755579082841,3.04,179.43,179.34,2.97]
[1755579083241,3.04,179.43,179.35,5.5731]
[1755579084745,3.04,179.43,179.34,2.97]
[1755579084746,3.04,179.43,179.34,8.5433]
[1755579086440,3.04,179.43,179.35,5.5731]
[1755579086943,3.04,179.43,179.36,3.2]
[1755579087347,3.04,179.43,179.36,8.7728]
[1755579090146,3.04,179.43,179.36,3.2]
[1755579097050,3.04,179.43,179.36,8.7728]
[1755579098353,3.04,179.46,179.37,3.2]
[1755579098554,3.04,179.46,179.37,8.7725]
[1755579098756,3.04,179.46,179.38,3.2]
[1755579099452,3.04,179.46,179.39,5.5719]
[1755579100551,3.04,179.5,179.4,3.2]
[1755579100750,3.94542892,179.49,179.4,3.2]
[1755579100950,3.04,179.5,179.42,3.2]
[1755579101155,3.04,179.5,179.43,3.2]
[1755579101654,4.98070621,179.57,179.34,374.52]
[1755579101655,3.04,179.53,179.46,3.2]
[1755579102156,0.03645797,179.48,179.47,3.2]
[1755579102455,0.03645797,179.48,179.46,5.5695]
[1755579102642,4.98070621,179.57,179.46,5.5695]
[1755579102643,3.04,179.5,179.46,5.5695]
[1755579102847,3.04,179.5,179.47,3.2]
[1755579103153,3.04,179.57,179.47,3.2]
[1755579103456,3.04,179.55,179.47,3.2]
[1755579104255,3.04,179.53,179.47,3.2]
[1755579104453,3.94145024,179.52,179.43,3.2]
[1755579104758,3.04,179.5,179.43,3.2]
[1755579105155,3.04,179.5,179.42,5.5708]
[1755579105351,3.04,179.5,179.41,8.18070621]
[1755579105551,3.04,179.5,179.41,13.75180621]
[1755579105751,3.04,179.5,179.41,8.18070621]
[1755579106055,3.04,179.48,179.39,5.5718]
[1755579107054,3.04,179.48,179.38,13.75280621]
[1755579107453,3.04,179.48,179.38,8.18070621]
[1755579107653,3.94342385,179.47,179.38,8.18070621]
[1755579107857,3.04,179.45,179.38,8.18070621]
[1755579108054,3.04,179.45,179.38,3.2]
[1755579108559,3.04,179.45,179.38,4.98070621]
[1755579108760,3.04,179.45,179.39,3.2]
[1755579109057,3.04,179.45,179.39,8.7719]
[1755579109858,3.04,179.45,179.39,3.2]
[1755579112161,3.04,179.45,179.39,8.7719]
[1755579113660,3.04,179.45,179.39,3.2]
[1755579115459,4.98070621,179.5,179.38,10.55280621]
[1755579115460,2.92,179.48,179.4,3.02]
[1755579116758,4.98070621,179.5,179.4,3.02]
[1755579116961,2.92,179.48,179.4,3.02]
[1755579117463,2.92,179.48,179.4,8.5916]
[1755579118160,2.92,179.48,179.41,5.5712]
[1755579118360,2.92,179.48,179.42,3.02]
[1755579120966,2.92,179.48,179.42,8.5909]
[1755579121164,2.92,179.48,179.42,3.02]
[1755579121377,2.92,179.48,179.34,374.52]
[1755579121378,3.94607534,179.47,179.39,4.98070621]
[1755579121567,6.86607534,179.46,179.4,3.02]
[1755579121870,2.92,179.46,179.4,3.02]
[1755579124073,3.94962501,179.45,179.4,3.02]
[1755579124275,2.92,179.46,179.37,3.02]
[1755579124473,3.9514046,179.45,179.37,3.02]
[1755579124768,6.8714046,179.44,179.37,3.02]
[1755579124970,3.9514046,179.43,179.37,3.02]
[1755579127669,2.92,179.47,179.38,4.98070621]
[1755579127869,3.95303534,179.46,179.39,3.02]
[1755579128177,2.92,179.47,179.39,3.02]
[1755579128379,3.95258784,179.46,179.4,5.5714]
[1755579128574,4.98070621,179.52,179.43,3.02]
[1755579128776,2.92,179.5,179.43,3.02]
[1755579129075,2.92,179.54,179.45,3.02]
[1755579129269,3.95160676,179.53,179.45,3.02]
[1755579129470,6.87160676,179.52,179.45,3.02]
[1755579129672,3.95160676,179.51,179.45,3.02]
[1755579129872,6.87160676,179.5,179.46,3.02]
[1755579130073,2.92,179.5,179.46,3.02]
[1755579130577,2.92,179.5,179.47,3.02]
[1755579131280,499.34270121,179.55,179.44,10.55100621]
[1755579131281,2.92,179.54,179.44,10.55100621]
[1755579131481,2.92,179.52,179.44,4.98070621]
[1755579131680,2.92,179.5,179.43,3.02]
[1755579131880,2.92,179.47,179.43,3.02]
[1755579132073,2.92,179.52,179.43,3.02]
[1755579132274,2.92,179.5,179.4,3.02]
[1755579132578,2.92,179.48,179.4,3.02]
[1755579132874,4.98070621,179.53,179.42,3.02]
[1755579133081,6.87173627,179.52,179.42,3.02]
[1755579133274,3.95173627,179.51,179.42,3.02]
[1755579133582,2.92,179.49,179.42,3.02]
[1755579133778,3.95173627,179.48,179.42,3.02]
[1755579134777,2.92,179.54,179.44,3.02]
[1755579135086,3.95161783,179.53,179.45,3.02]
[1755579135278,6.87161783,179.52,179.45,3.02]
[1755579135470,3.95161783,179.51,179.45,3.02]
[1755579135674,3.95161783,179.5,179.45,3.02]
[1755579135878,2.92,179.48,179.42,8.5907]
[1755579136081,2.92,179.48,179.42,3.02]
[1755579137873,2.92,179.53,179.45,3.02]
[1755579138069,3.95118793,179.52,179.49,3.02]
[1755579138275,124.92270121,179.55,179.49,3.02]
[1755579138483,3.95070725,179.54,179.48,3.02]
[1755579138677,124.92270121,179.55,179.49,3.02]
[1755579138678,3.95070725,179.53,179.49,3.02]
[1755579138983,2.92,179.54,179.5,3.02]
[1755579139180,3.95070725,179.53,179.5,3.02]
[1755579139479,2.92,179.54,179.47,8.00070621]
[1755579139675,3.95040153,179.53,179.47,4.98070621]
[1755579139881,2.92,179.54,179.47,4.98070621]
[1755579140068,3.95040153,179.53,179.47,4.98070621]
[1755579140275,2.92,179.54,179.47,4.98070621]
[1755579140474,3.95022214,179.53,179.45,5.57]
[1755579140674,2.92,179.51,179.44,8.00070621]
[1755579141181,3.95089785,179.5,179.44,8.00070621]
[1755579141382,2.92,179.51,179.44,8.00070621]
[1755579141687,127.84270121,179.55,179.47,4.98070621]
[1755579141880,3.94303024,179.54,179.47,8.00070621]
[1755579142076,3.94303024,179.53,179.47,8.00070621]
[1755579142377,127.84270121,179.55,179.47,8.00070621]
[1755579142577,3.9429599,179.54,179.47,8.00070621]
[1755579142771,3.9429599,179.53,179.47,8.00070621]
[1755579142976,127.84270121,179.55,179.47,8.00070621]
[1755579143171,3.94296059,179.54,179.47,8.00070621]
[1755579143375,3.94296059,179.53,179.47,8.00070621]
[1755579143571,127.84270121,179.55,179.47,13.56990621]
[1755579143772,3.94286917,179.54,179.47,13.56990621]
[1755579143980,3.94286917,179.53,179.47,13.56990621]
[1755579144185,127.84270121,179.55,179.47,13.56990621]
[1755579144384,3.94298575,179.54,179.47,13.56990621]
[1755579144681,3.94298575,179.53,179.47,13.56990621]
[1755579144886,127.84270121,179.55,179.47,13.56990621]
[1755579145086,3.94265268,179.54,179.47,13.56990621]
[1755579145386,3.94265268,179.53,179.47,13.56990621]
[1755579145587,127.84270121,179.55,179.47,8.00070621]
[1755579145888,3.94253524,179.54,179.47,8.00070621]
[1755579146094,3.94253524,179.53,179.47,13.57010621]
[1755579146280,127.84270121,179.55,179.47,13.57010621]
[1755579146480,3.94198685,179.54,179.47,13.57010621]
[1755579146780,3.94198685,179.53,179.47,13.57010621]
[1755579146986,127.84270121,179.55,179.47,13.57010621]
[1755579147189,3.94198685,179.54,179.47,13.57010621]
[1755579147485,3.94198685,179.53,179.47,13.57010621]
[1755579147683,127.84270121,179.55,179.47,13.57010621]
[1755579147985,3.94176045,179.54,179.48,3.19]
[1755579148279,124.92270121,179.55,179.48,3.19]
[1755579148486,124.92270121,179.55,179.48,8.7589]
[1755579150094,124.92270121,179.55,179.49,5.5688]
[1755579150480,124.92270121,179.55,179.48,3.19]
[1755579150887,124.92270121,179.55,179.48,8.759]
[1755579151185,128.02270121,179.55,179.48,8.17070621]
[1755579151687,124.92270121,179.55,179.48,8.17070621]
[1755579151987,3.1,179.57,179.49,3.19]
[1755579152282,3.9383508,179.56,179.49,3.19]
[1755579152478,3.1,179.58,179.49,3.19]
[1755579152675,3.93725053,179.57,179.49,3.19]
[1755579152887,3.1,179.58,179.49,3.19]
[1755579153093,3.93715897,179.57,179.49,3.19]
[1755579153380,3.1,179.58,179.51,5.568]
[1755579153585,3.93694383,179.57,179.51,8.758]
[1755579153885,3.1,179.58,179.51,8.758]
[1755579154088,3.93694383,179.57,179.51,8.758]
[1755579154281,3.1,179.58,179.51,8.758]
[1755579154486,3.93631412,179.57,179.51,8.758]
[1755579154678,3.1,179.58,179.51,8.758]
[1755579154875,3.93631087,179.57,179.51,8.758]
[1755579155088,3.1,179.58,179.51,8.758]
[1755579155276,3.93631087,179.57,179.51,8.758]
[1755579155485,3.1,179.58,179.51,3.19]
[1755579155688,3.93577419,179.57,179.51,3.19]
[1755579155890,3.1,179.58,179.51,3.19]
[1755579156089,3.93577419,179.57,179.51,3.19]
[1755579156287,3.1,179.58,179.51,3.19]
[1755579156582,3.9352758,179.57,179.51,3.19]
[1755579156781,3.1,179.58,179.51,3.19]
[1755579156984,3.9352758,179.57,179.51,3.19]
[1755579157183,3.1,179.58,179.51,3.19]
[1755579157386,3.1,179.58,179.51,8.7582]
[1755579158791,3.1,179.58,179.51,3.19]
[1755579159580,3.1,179.58,179.51,8.7582]
[1755579160394,3.1,179.61,179.54,3.19]
[1755579160589,3.93350177,179.6,179.54,4.98070621]
[1755579160787,3.1,179.61,179.54,4.98070621]
[1755579161187,3.1,179.61,179.54,8.17070621]
[1755579161897,3.1,179.61,179.55,3.19]
[1755579162592,3.1,179.64,179.55,3.19]
[1755579162794,3.1,179.62,179.55,3.19]
[1755579165892,3.1,179.62,179.55,8.7569]
[1755579166192,3.1,179.62,179.55,3.19]
[1755579166694,3.1,179.62,179.55,8.7569]
[1755579167298,3.1,179.62,179.56,5.5664]
[1755579167484,123.51469945,179.69,179.54,4.98070621]
[1755579167684,3.1,179.67,179.58,4.98070621]
[1755579168092,3.1,179.65,179.58,4.98070621]
[1755579168285,3.1,179.65,179.59,3.19]
[1755579168489,3.1,179.68,179.59,3.19]
[1755579168687,3.1,179.68,179.61,4.98070621]
[1755579169285,3.1,179.68,179.61,10.54580621]
[1755579169487,3.1,179.68,179.61,4.98070621]
[1755579171991,3.1,179.68,179.62,3.19]
[1755579173395,123.51469945,179.69,179.62,3.19]
[1755579173595,3.90938346,179.68,179.62,3.19]
[1755579173799,126.64469945,179.69,179.62,3.19]
[1755579174008,3.90938184,179.68,179.62,3.19]
[1755579174306,3.13,179.66,179.62,3.19]
[1755579175205,3.13,179.66,179.63,3.15]
[1755579175406,3.13,179.66,179.61,4.98070621]
[1755579175407,3.13,179.66,179.62,3.15]
[1755579177497,3.13,179.68,179.61,4.98070621]
[1755579179009,3.13,179.68,179.61,8.13070621]
[1755579181199,3.13,179.68,179.61,13.69570621]
[1755579181808,3.13,179.68,179.61,8.13070621]
[1755579182797,3.90853063,179.67,179.58,8.13070621]
[1755579183001,7.03853063,179.66,179.59,3.15]
[1755579183200,3.13,179.66,179.59,3.15]
[1755579183506,3.13,179.66,179.6,5.5654]
[1755579184003,3.13,179.66,179.63,3.15]
[1755579184204,123.51469945,179.69,179.6,5.5654]
[1755579184406,7.03861981,179.68,179.64,3.15]
[1755579184603,3.13,179.68,179.65,3.15]
[1755579187003,10.88050816,179.76,179.65,3.15]
[1755579187203,3.13,179.71,179.65,3.15]
[1755579189204,3.13,179.71,179.63,3.15]
[1755579190309,3.90874099,179.7,179.63,3.15]
[1755579190514,3.13,179.71,179.63,3.15]
[1755579190715,3.90873977,179.7,179.63,3.15]
[1755579190908,3.13,179.71,179.63,3.15]
[1755579191213,3.90873936,179.7,179.63,3.15]
[1755579191415,3.13,179.75,179.66,3.15]
[1755579191602,3.90840735,179.74,179.66,3.15]
[1755579191802,3.13,179.75,179.68,8.13070621]
[1755579192416,3.13,179.75,179.68,13.69370621]
[1755579192619,3.13,179.75,179.68,8.13070621]
[1755579193009,3.13,179.75,179.71,3.15]
[1755579193210,0.04270123,179.73,179.71,3.15]
[1755579194316,3.17270123,179.73,179.7,0.03623674]
[1755579194718,3.13,179.72,179.7,0.03623674]
[1755579195617,0.04270123,179.73,179.7,3.18623674]
[1755579195813,3.17270123,179.73,179.7,3.18623674]
[1755579196122,3.13,179.72,179.7,0.03623674]
[1755579196413,3.13,179.71,179.7,0.03623674]
[1755579196815,0.04270123,179.73,179.7,0.03623674]
[1755579196816,3.17270123,179.73,179.7,0.03623674]
[1755579197719,0.04270123,179.73,179.7,0.03623674]
[1755579197917,3.13,179.71,179.7,0.03623674]
[1755579199119,0.04270123,179.73,179.7,0.03623674]
[1755579199323,3.17270123,179.73,179.7,0.03623674]
[1755579199514,3.13,179.71,179.7,0.03623674]
[1755579201810,3.91057108,179.72,179.61,8.13070621]
[1755579202017,3.13,179.7,179.61,8.13070621]
[1755579202412,3.91256071,179.69,179.61,8.13070621]
[1755579202613,6.81268313,179.68,179.61,3.15]
[1755579202910,2.9,179.68,179.61,3.15]
[1755579203510,2.9,179.68,179.61,8.13070621]
[1755579203912,2.9,179.68,179.62,3.09]
[1755579204316,2.9,179.68,179.6,1.06113]
[1755579204317,2.9,179.72,179.64,4.98070621]
[1755579204518,2.9,179.72,179.65,3.09]
[1755579205825,4.98070621,179.77,179.63,4.98070621]
[1755579205826,2.9,179.7,179.63,4.98070621]
[1755579206018,2.9,179.7,179.64,3.09]
[1755579210318,2.9,179.7,179.64,8.6543]
[1755579210524,2.9,179.73,179.66,4.99590738]
[1755579210729,3.92242208,179.72,179.66,4.99590738]
[1755579211032,3.92242208,179.71,179.66,4.99590738]
[1755579211240,3.92242208,179.7,179.68,3.09]
[1755579211533,2.9,179.76,179.68,3.09]
[1755579211735,2.9,179.74,179.66,4.99590738]
[1755579211939,2.9,179.72,179.66,4.99590738]
[1755579212129,6.82373341,179.71,179.66,4.99590738]
[1755579212324,3.92373341,179.7,179.67,3.09]
[1755579213729,3.92373341,179.7,179.66,4.99590738]
[1755579213938,2.9,179.75,179.66,4.99590738]
[1755579214133,2.9,179.73,179.66,4.99590738]
[1755579214329,3.92535796,179.72,179.66,4.99590738]
[1755579214527,6.82535796,179.71,179.67,3.09]
[1755579214732,3.92535796,179.7,179.67,3.09]
[1755579214932,5.89980195,179.77,179.67,3.09]
[1755579215138,2.9,179.73,179.66,4.99590738]
[1755579215325,3.92562411,179.72,179.66,4.99590738]
[1755579215523,6.82562411,179.71,179.67,3.09]
[1755579215728,3.92562411,179.7,179.67,3.09]
[1755579216142,6.82562411,179.7,179.67,3.09]
[1755579216329,2.9,179.7,179.67,3.09]
[1755579217942,2.9,179.75,179.67,3.09]
[1755579218131,11.4013437,179.74,179.67,3.09]
[1755579218439,3.92649778,179.73,179.67,3.09]
[1755579218641,6.82649778,179.72,179.68,3.09]
[1755579218841,3.92649778,179.71,179.68,3.09]
[1755579219747,3.92649778,179.71,179.69,3.09]
[1755579220541,3.92649778,179.7,179.67,3.09]
[1755579222136,3.92649778,179.7,179.66,4.99590738]
[1755579222341,2.9,179.73,179.69,3.09]